bitfinex-derivatives/quotes_SOLF0:USTF0_20250409
["timestamp","ask_amount","ask_price","bid_price","bid_amount"]
[1744207327825,39.08494004,107.17,107.0,742.28593508]
[1744207328009,13.362,107.16,107.05,39.51538625]
[1744207328214,1.62521891,107.2,107.1,39.51538625]
[1744207328415,13.4322,107.2,107.1,39.51538625]
[1744207328615,85.8722,107.2,107.1,39.51538625]
[1744207329013,0.0616967,107.16,107.14,8.785e-05]
[1744207329415,39.51538625,107.15,107.04,111.95538625]
[1744207329615,39.51538625,107.13,107.03,248.58593508]
[1744207329820,9.0257,107.12,107.05,39.51538625]
[1744207330025,9.0257,107.12,107.05,72.42]
[1744207330426,0.07145374,107.1,107.07,0.05906422]
[1744207330629,0.07145374,107.1,107.01,111.93538625]
[1744207330830,0.07145374,107.1,107.05,9.3483]
[1744207330831,9.3458,107.09,107.05,9.3483]
[1744207331033,39.51538625,107.08,106.99,39.51538625]
[1744207331242,39.51538625,107.08,107.01,95.59543953]
[1744207331440,4.758,107.07,107.01,104.94763953]
[1744207331734,4.758,107.07,107.01,95.59543953]
[1744207331934,9.35,107.04,107.03,0.06130197]
[1744207332337,9.34,107.04,106.99,149.61357639]
[1744207332537,4.6382,107.03,106.99,149.61357639]
[1744207333436,9.41346485,107.02,107.0,0.06012318]
[1744207333636,0.06156485,107.02,107.0,0.06012318]
[1744207334039,9.3522,107.01,107.0,0.06012318]
[1744207334425,0.06156485,107.02,107.0,0.06012318]
[1744207334623,78.60032629,107.15,107.01,39.51538625]
[1744207334835,9.0028,107.15,107.07,39.51538625]
[1744207335038,9.3395,107.16,107.09,39.51538625]
[1744207335224,39.51538625,107.19,107.09,39.51538625]
[1744207335432,111.93538625,107.21,107.09,39.51538625]
[1744207335637,39.51538625,107.19,107.09,39.51538625]
[1744207335841,0.0669646,107.16,107.14,0.06412202]
[1744207336236,4.6116,107.18,107.1,9.3438]
[1744207336435,0.06558363,107.16,107.14,0.06176142]
[1744207336635,9.40468363,107.16,107.14,0.06176142]
[1744207336839,0.06558363,107.16,107.14,0.06176142]
[1744207337141,9.3399,107.15,107.14,0.06176142]
[1744207337530,9.34,107.15,107.08,72.42]
[1744207337730,39.58096988,107.16,107.08,72.42]
[1744207337947,39.51538625,107.14,107.03,39.51538625]
[1744207338125,9.3468,107.08,107.04,9.3491]
[1744207338443,39.51538625,107.08,106.98,72.4]
[1744207338742,39.51538625,107.06,106.98,9.3547]
[1744207339037,0.06165791,107.04,107.02,0.06261538]
[1744207339227,9.3541,106.99,106.93,261.52896264]
[1744207339431,39.51538625,107.02,106.93,222.01357639]
[1744207339832,39.51538625,107.0,106.93,149.61357639]
[1744207340030,39.51538625,106.98,106.93,149.61357639]
[1744207340229,39.51538625,106.96,106.93,149.61357639]
[1744207340528,39.51538625,106.94,106.93,142.30900501]
[1744207340731,9.3592,106.93,106.92,249.35596066]
[1744207340932,4.4245,106.99,106.92,288.87134691]
[1744207341138,72.58,107.04,106.94,39.51538625]
[1744207341646,112.09538625,107.04,106.94,39.51538625]
[1744207341845,0.06471077,107.0,106.98,0.07197065]
[1744207342043,72.6,106.99,106.92,249.35596066]
[1744207342346,9.3592,106.93,106.92,249.35596066]
[1744207342646,39.51538625,106.99,106.87,4.7286]
[1744207343045,39.51538625,106.99,106.88,39.51538625]
[1744207343345,0.05947737,106.94,106.92,0.06188772]
[1744207343734,39.51538625,106.99,106.9,72.6]
[1744207343935,0.06647095,106.94,106.92,0.06839774]
[1744207344346,39.51538625,106.99,106.9,112.11538625]
[1744207344548,0.06089988,106.94,106.92,0.06324356]
[1744207344846,39.51538625,106.99,106.9,72.6]
[1744207345048,0.06025516,106.94,106.92,0.05965142]
[1744207345545,39.51538625,107.0,106.88,39.51538625]
[1744207345845,43.96728625,107.01,106.9,39.51538625]
[1744207346043,43.96728625,107.01,106.93,0.06276556]
[1744207346044,0.0670448,106.95,106.93,0.06276556]
[1744207346245,9.3555,106.98,106.93,9.3583]
[1744207346548,0.06707944,106.95,106.93,0.06613217]
[1744207346942,39.51538625,107.0,106.92,9.3595]
[1744207347138,0.06358419,106.95,106.93,0.06075606]
[1744207347443,39.51538625,107.0,106.9,9.3613]
[1744207347636,0.06439304,106.95,106.93,0.05936247]
[1744207348048,39.51538625,107.0,106.94,9.3578]
[1744207348245,0.06282619,106.95,106.93,0.06805852]
[1744207348550,8.912,107.01,106.96,0.06015798]
[1744207348551,39.51538625,106.98,106.96,0.06015798]
[1744207348737,0.06294566,106.95,106.91,9.3608]
[1744207349045,0.0687278,106.94,106.92,0.06634002]
[1744207350839,0.0687278,106.94,106.93,9.3592]
[1744207351142,50.0,107.05,106.93,209.07054883]
[1744207351444,50.0,107.05,106.95,39.51538625]
[1744207351643,50.0,107.05,106.94,4.5673]
[1744207351943,89.51538625,107.05,106.95,39.51538625]
[1744207352135,0.06847644,107.01,106.98,0.0594909]
[1744207352537,0.06847644,107.01,106.94,4.5673]
[1744207352738,0.06847644,107.01,106.98,0.06530116]
[1744207352946,89.51538625,107.05,106.98,0.06530116]
[1744207353136,0.06666419,107.01,106.98,0.06530116]
[1744207353333,0.06666419,107.01,106.94,4.5673]
[1744207353532,112.15538625,107.01,106.98,0.06626923]
[1744207353754,9.3587,106.94,106.9,9.3614]
[1744207353939,39.51538625,106.97,106.88,77.4955]
[1744207354140,39.51538625,106.98,106.88,77.4955]
[1744207354643,39.51538625,106.94,106.87,4.4958]
[1744207354843,9.3614,106.91,106.88,9.3634]
[1744207355040,39.57872162,106.94,106.85,4.8555]
[1744207355253,39.51538625,106.92,106.88,0.06248088]
[1744207355436,9.3633,106.89,106.88,0.06248088]
[1744207355637,0.07199297,106.91,106.83,72.64]
[1744207355932,9.3635,106.88,106.87,0.06420241]
[1744207356241,0.06765102,106.88,106.87,0.06420241]
[1744207356440,0.06765102,106.88,106.87,9.42860241]
[1744207357032,5.102e-05,106.88,106.87,9.42860241]
[1744207357739,5.102e-05,106.88,106.87,0.06420241]
[1744207358835,5.102e-05,106.88,106.87,9.42860241]
[1744207359843,5.102e-05,106.88,106.87,58.30398866]
[1744207360046,9.2692,106.98,106.93,9.3586]
[1744207360340,9.2692,106.98,106.89,70.76]
[1744207360545,9.2692,106.98,106.9,9.3614]
[1744207360751,9.3588,106.94,106.9,9.3614]
[1744207360950,39.51538625,106.96,106.89,70.76]
[1744207361138,0.06474124,106.93,106.91,0.06790116]
[1744207361542,0.06474124,106.93,106.91,9.42860116]
[1744207361748,9.3622,106.9,106.82,494.02]
[1744207361941,39.51538625,106.93,106.82,538.21728625]
[1744207362241,70.76,106.94,106.82,538.21728625]
[1744207362434,70.76,106.94,106.84,39.51538625]
[1744207362640,70.76,106.94,106.88,9.3629]
[1744207362942,9.4193534,106.92,106.9,0.071701]
[1744207363143,0.0589534,106.92,106.82,538.21728625]
[1744207363337,39.51538625,106.91,106.82,498.7019]
[1744207363533,112.28494004,107.02,106.85,39.51538625]
[1744207363746,4.8328,106.96,106.76,209.07054883]
[1744207363943,39.51538625,106.92,106.81,44.35018625]
[1744207364341,4.8328,106.96,106.87,39.51538625]
[1744207364645,4.8328,106.96,106.88,4.8348]
[1744207365040,9.3588,106.94,106.88,4.8348]
[1744207365241,4.8328,106.96,106.88,4.8348]
[1744207365436,4.8328,106.96,106.88,44.35018625]
[1744207365645,0.06479522,106.93,106.92,9.36]
[1744207365851,73.2,106.99,106.9,39.51538625]
[1744207366155,0.06360076,106.94,106.91,0.05998587]
[1744207366345,7.6e-07,106.94,106.91,0.07032376]
[1744207366549,7.6e-07,106.94,106.91,62.07032376]
[1744207366847,7.6e-07,106.94,106.91,0.07032376]
[1744207367755,7.6e-07,106.94,106.91,39.58571001]
[1744207368266,50.0,107.05,107.02,9.3508]
[1744207368448,50.0,107.05,106.98,39.51538625]
[1744207368640,50.0,107.05,107.0,39.51538625]
[1744207369043,50.0,107.05,106.98,44.13488625]
[1744207369344,0.06279575,107.03,107.0,0.06672435]
[1744207369543,0.06279575,107.03,107.0,39.5821106]
[1744207369943,0.06279575,107.03,107.02,9.3513]
[1744207370139,0.06279575,107.03,107.0,0.06672435]
[1744207370743,112.758182,107.03,106.91,44.13488625]
[1744207370945,39.51538625,107.01,106.91,44.13488625]
[1744207371145,39.51538625,106.99,106.91,4.6195]
[1744207371346,39.51538625,106.97,106.88,39.51538625]
[1744207371547,39.51538625,106.97,106.87,218.27874883]
[1744207371747,39.51538625,106.97,106.87,4.553]
[1744207371944,9.3614,106.91,106.87,4.553]
[1744207372258,73.18,106.93,106.91,0.0683864]
[1744207372566,73.18,106.93,106.84,39.51538625]
[1744207372751,73.24110112,106.93,106.91,0.06566834]
[1744207373065,533.47538625,106.95,106.84,101.51538625]
[1744207373066,9.3578,106.95,106.86,112.69538625]
[1744207373256,0.06037885,106.93,106.91,0.06512714]
[1744207375362,9.41957885,106.93,106.91,0.06512714]
[1744207375969,9.36,106.92,106.91,0.06512714]
[1744207376154,0.06037885,106.93,106.91,0.06512714]
[1744207376355,49.93487286,106.9,106.89,9.3621]
[1744207376655,49.93487286,106.9,106.83,4.553]
[1744207376859,39.51538625,106.87,106.77,209.07054883]
[1744207377069,39.51538625,106.83,106.75,1.62864163]
[1744207377258,4.6261,106.82,106.74,4.7068]
[1744207377560,0.06755915,106.79,106.77,0.06128578]
[1744207378054,5.915e-05,106.79,106.78,39.51538625]
[1744207378248,5.915e-05,106.79,106.77,0.06128578]
[1744207378457,5.915e-05,106.79,106.78,9.3723]
[1744207378965,4.6261,106.87,106.81,9.3695]
[1744207379154,9.3664,106.85,106.78,39.81538625]
[1744207379365,4.6261,106.87,106.78,39.81538625]
[1744207379653,9.367,106.85,106.79,9.3709]
[1744207379852,9.367,106.85,106.78,0.3]
[1744207380062,0.06699516,106.83,106.81,0.07152857]
[1744207380951,39.58238141,106.83,106.74,4.7068]
[1744207381151,39.51538625,106.79,106.69,39.51538625]
[1744207381451,39.51538625,106.77,106.68,209.07054883]
[1744207381649,4.5233,106.78,106.69,39.51538625]
[1744207381859,48.90358625,106.82,106.71,39.51538625]
[1744207382063,4.5233,106.82,106.73,39.51538625]
[1744207382264,0.06482751,106.78,106.75,0.06695022]
[1744207382656,0.06482751,106.78,106.77,9.3732]
[1744207383259,0.06482751,106.78,106.76,9.3736]
[1744207383456,0.06482751,106.78,106.75,0.06349973]
[1744207383869,2.751e-05,106.78,106.77,9.3732]
[1744207384061,44.38028625,106.87,106.77,39.51538625]
[1744207384370,44.38028625,106.87,106.75,248.58593508]
[1744207384551,39.51538625,106.83,106.73,77.7651]
[1744207384757,39.51538625,106.81,106.73,4.5451]
[1744207384957,39.51538625,106.83,106.74,39.51538625]
[1744207385156,0.07160792,106.78,106.76,0.07144345]
[1744207385358,73.24,106.81,106.73,4.5451]
[1744207385559,39.51538625,106.83,106.76,0.06835977]
[1744207385762,39.51538625,106.83,106.73,44.06048625]
[1744207385956,39.58286685,106.81,106.78,2.2e-05]
[1744207386162,39.51538625,106.79,106.69,282.68714883]
[1744207386362,9.3733,106.77,106.73,9.3762]
[1744207386567,4.587,106.81,106.72,39.51538625]
[1744207386972,4.706,106.83,106.74,39.51538625]
[1744207387274,0.06228789,106.78,106.75,0.07077962]
[1744207387467,0.06228789,106.78,106.74,112.75538625]
[1744207387665,4.587,106.86,106.76,39.51538625]
[1744207387860,9.3671,106.84,106.79,9.3714]
[1744207388065,48.80838625,106.86,106.75,44.32048625]
[1744207388962,0.06628303,106.82,106.79,9.43421172]
[1744207389366,0.06628303,106.82,106.77,39.51538625]
[1744207389572,49.93487286,106.9,106.79,112.8391306]
[1744207389771,44.38608625,106.89,106.79,112.8391306]
[1744207390075,39.51538625,106.85,106.75,4.8051]
[1744207390266,39.51538625,106.83,106.75,4.8051]
[1744207390570,4.7792,106.84,106.75,44.32048625]
[1744207390773,9.433e-05,106.8,106.78,0.06937628]
[1744207391074,4.7792,106.88,106.79,112.77538625]
[1744207391266,4.8707,106.89,106.81,39.51538625]
[1744207391468,44.38608625,106.89,106.75,117.58048625]
[1744207391668,44.38608625,106.89,106.77,39.51538625]
[1744207392065,44.38608625,106.89,106.75,78.0651]
[1744207392066,0.05940113,106.84,106.82,0.06213343]
[1744207392474,9.3683,106.83,106.79,9.3707]
[1744207392659,0.06788102,106.84,106.82,0.06730793]
[1744207393066,49.93487286,106.9,106.82,257.94593508]
[1744207393263,49.93487286,106.9,106.84,39.51538625]
[1744207393464,49.93487286,106.9,106.85,71.36]
[1744207393667,49.93487286,106.9,106.88,9.363]
[1744207393863,21.06537286,106.9,106.88,39.51538625]
[1744207394172,51.4057982,106.98,106.95,9.357]
[1744207394670,51.4057982,106.98,106.97,9.3557]
[1744207394873,51.46994353,106.98,106.95,0.06641988]
[1744207395174,44.15824353,106.98,106.96,9.3564]
[1744207395367,177.33582642,106.99,106.96,39.51538625]
[1744207395568,51.16436629,107.05,106.98,39.51538625]
[1744207396764,0.06608658,107.03,107.0,0.06698814]
[1744207397668,0.06608658,107.03,107.0,39.58237439]
[1744207397870,0.06608658,107.03,107.02,39.51538625]
[1744207398070,17.47696629,107.05,107.02,110.83538625]
[1744207398280,244.19507045,107.07,107.04,39.51538625]
[1744207398473,258.36280101,107.08,107.07,9.3469]
[1744207398679,139.96714293,107.08,107.07,80.6669]
[1744207398882,52.79878625,107.17,107.07,71.32]
[1744207399062,13.2834,107.17,107.08,39.51538625]
[1744207399263,0.06193337,107.13,107.11,0.06182919]
[1744207399471,0.06193337,107.13,107.12,48.85798625]
[1744207399779,3.337e-05,107.13,107.12,329.18853508]
[1744207399979,3.337e-05,107.13,107.12,319.84593508]
[1744207400173,3.337e-05,107.13,107.11,0.06182919]
[1744207400568,9.3426,107.12,107.11,0.06182919]
[1744207401265,48.85538625,107.12,107.06,142.05870613]
[1744207401465,39.51538625,107.1,107.06,142.05870613]
[1744207402176,110.34494004,107.13,107.06,142.05870613]
[1744207402376,39.51538625,107.09,107.04,96.06343788]
[1744207402573,39.58306191,107.09,107.07,6.844e-05]
[1744207402884,9.346,107.08,107.07,6.844e-05]
[1744207403378,18.686,107.08,107.07,6.844e-05]
[1744207403578,39.51538625,107.11,107.07,6.844e-05]
[1744207403883,110.32494004,107.12,107.07,6.844e-05]
[1744207404077,39.51538625,107.1,107.07,6.844e-05]
[1744207404382,39.51538625,107.08,106.98,305.13398671]
[1744207404672,9.3539,106.99,106.98,96.06343788]
[1744207404880,39.51538625,107.03,106.98,96.06343788]
[1744207405079,4.7812,107.02,106.98,96.06343788]
[1744207405475,39.57674452,107.01,106.99,0.0699048]
[1744207405674,0.06135827,107.01,106.99,0.0699048]
[1744207406080,39.08494004,107.14,107.0,39.51538625]
[1744207406277,9.353,107.0,106.99,0.0699048]
[1744207406487,39.51538625,107.03,106.94,9.3581]
[1744207406676,4.5648,107.02,106.94,39.51538625]
[1744207407176,0.06533298,106.99,106.97,0.06129324]
[1744207407481,9.3861,107.04,106.94,39.51538625]
[1744207407783,8.229e-05,106.99,106.98,39.51538625]
[1744207408082,44.08018625,107.05,106.95,39.51538625]
[1744207408279,39.51538625,107.03,106.93,324.55943508]
[1744207408577,71.22,107.04,106.95,39.51538625]
[1744207408880,0.04101666,107.01,106.98,0.06746238]
[1744207409079,0.04101666,107.01,106.98,9.42166238]
[1744207409279,0.04101666,107.01,106.98,0.06746238]
[1744207409485,39.55640291,107.01,106.98,0.06746238]
[1744207409671,0.04101666,107.01,106.98,0.06746238]
[1744207411184,4.5648,107.05,107.0,9.353]
[1744207411577,4.5648,107.05,106.98,110.73538625]
[1744207411784,4.5648,107.05,106.94,71.22]
[1744207411977,39.51538625,107.03,106.93,4.7535]
[1744207412288,76.0887,107.02,106.94,9.3577]
[1744207412486,76.0887,107.02,106.97,0.06783931]
[1744207412985,4.8687,107.02,106.97,0.06783931]
[1744207413294,9.3548,106.98,106.97,0.06783931]
[1744207413673,39.51538625,106.99,106.93,96.06343788]
[1744207413878,9.3581,106.95,106.93,96.06343788]
[1744207414087,4.6685,106.98,106.93,96.06343788]
[1744207414278,4.6685,106.98,106.91,264.43375643]
[1744207414279,9.358,106.95,106.91,191.45608455]
[1744207414481,4.6685,106.98,106.91,182.09568455]
[1744207414790,9.357,106.96,106.92,9.3596]
[1744207414989,0.06783931,106.96,106.93,0.06964334]
[1744207415883,9.3582,106.95,106.93,0.06964334]
[1744207416278,0.06783931,106.96,106.93,0.06964334]
[1744207416679,32.79519977,106.98,106.93,0.06964334]
[1744207416989,9.3568,106.96,106.93,9.42844334]
[1744207417183,44.04078625,107.0,106.93,9.42844334]
[1744207417383,4.5254,107.0,106.9,39.51538625]
[1744207417592,9.3558,106.97,106.94,9.3578]
[1744207417786,9.3558,106.97,106.91,71.24]
[1744207417992,4.5254,107.0,106.94,0.06512701]
[1744207418290,9.3571,106.96,106.94,0.06512701]
[1744207418690,44.04078625,107.0,106.94,0.06512701]
[1744207418886,39.51538625,106.96,106.87,75.8306]
[1744207419197,39.51538625,106.94,106.86,34.45856113]
[1744207419390,4.5755,106.93,106.86,34.45856113]
[1744207419778,9.3644,106.87,106.86,34.45856113]
[1744207420190,0.06106301,106.88,106.85,9.42563139]
[1744207420396,0.06106301,106.88,106.85,0.05983139]
[1744207420688,0.06106301,106.88,106.82,4.607]
[1744207420884,0.06106301,106.88,106.85,0.07016756]
[1744207421286,0.06106301,106.88,106.79,280.31054883]
[1744207421488,0.06106301,106.88,106.79,319.82593508]
[1744207421793,39.51538625,106.88,106.79,319.82593508]
[1744207422002,4.6732,106.87,106.79,280.31054883]
[1744207422392,9.3675,106.84,106.8,9.3701]
[1744207422593,9.3675,106.84,106.82,0.06423695]
[1744207422594,0.06281519,106.84,106.82,0.06423695]
[1744207422796,0.06281519,106.84,106.76,96.06343788]
[1744207423103,39.51538625,106.85,106.76,96.06343788]
[1744207423104,39.51538625,106.81,106.76,96.06343788]
[1744207423293,111.13538625,106.81,106.76,96.06343788]
[1744207423496,9.3709,106.8,106.76,96.06343788]
[1744207423799,533.57538625,106.85,106.76,96.06343788]
[1744207423998,0.06104528,106.79,106.77,0.06982376]
[1744207424200,4.5862,106.84,106.76,96.06343788]
[1744207424713,0.06150886,106.79,106.77,0.06665844]
[1744207425004,9.3684,106.83,106.78,9.3717]
[1744207425207,7.535e-05,106.79,106.77,0.06416985]
[1744207425391,4.5862,106.84,106.77,4.4862]
[1744207425702,4.5862,106.84,106.77,66.4862]
[1744207425906,4.6732,106.87,106.78,39.51538625]
[1744207426600,0.05935733,106.84,106.81,0.06730089]
[1744207426807,0.05935733,106.84,106.74,115.62158625]
[1744207426991,44.22848625,106.86,106.74,115.62158625]
[1744207427193,44.22848625,106.86,106.74,76.1062]
[1744207427502,39.51538625,106.84,106.74,76.1062]
[1744207427810,39.51538625,106.82,106.74,71.62]
[1744207428013,39.58631339,106.8,106.78,6.839e-05]
[1744207428316,39.58631339,106.8,106.71,79.15086427]
[1744207428317,76.3531,106.79,106.74,96.06343788]
[1744207428497,39.51538625,106.77,106.74,96.06343788]
[1744207428697,9.3749,106.75,106.74,96.06343788]
[1744207428904,120.54838625,106.79,106.74,96.06343788]
[1744207429109,9.3749,106.75,106.74,96.06343788]
[1744207429406,39.51538625,106.75,106.71,461.84511293]
[1744207429607,39.51538625,106.75,106.71,399.7845261]
[1744207430001,39.51538625,106.72,106.71,262.4919261]
[1744207430296,39.51538625,106.72,106.66,79.09508148]
[1744207430497,39.51538625,106.7,106.66,79.09508148]
[1744207430706,9.3811,106.68,106.66,79.09508148]
[1744207430897,0.06835959,106.7,106.67,0.06442428]
[1744207431090,9.3807,106.69,106.67,0.06442428]
[1744207431294,39.58374584,106.7,106.67,0.06442428]
[1744207431706,9.3811,106.68,106.67,0.06442428]
[1744207432513,48.89648625,106.68,106.67,2.428e-05]
[1744207432699,9.382,106.67,106.66,3.11330576]
[1744207433009,9.382,106.67,106.66,5.76e-06]
[1744207433205,9.3846,106.64,106.63,300.19824339]
[1744207433509,9.3846,106.64,106.61,485.09800311]
[1744207433510,39.51538625,106.66,106.56,14.0643]
[1744207433903,0.07113949,106.65,106.62,0.06789302]
[1744207434107,39.51538625,106.68,106.62,0.06789302]
[1744207434297,9.3851,106.64,106.57,39.51538625]
[1744207434493,9.3851,106.64,106.62,0.0690343]
[1744207434803,9.44609123,106.64,106.62,0.06894638]
[1744207435111,0.06099123,106.64,106.62,0.06894638]
[1744207437409,9.3828,106.67,106.62,0.06894638]
[1744207437611,39.51538625,106.7,106.64,9.3841]
[1744207437806,39.51538625,106.7,106.63,9.3356]
[1744207438111,39.51538625,106.66,106.55,605.61538625]
[1744207438314,9.3863,106.63,106.57,4.697]
[1744207438616,0.06672735,106.61,106.59,0.06356225]
[1744207438913,71.74,106.66,106.57,44.21238625]
[1744207439206,71.74,106.66,106.59,0.06746372]
[1744207439207,0.06922441,106.61,106.59,0.06746372]
[1744207439413,39.51538625,106.62,106.55,9.3356]
[1744207439607,39.51538625,106.62,106.56,9.3915]
[1744207439910,0.07188103,106.61,106.59,0.06387724]
[1744207440208,81.1489,106.6,106.59,0.06387724]
[1744207440413,0.07188103,106.61,106.52,13.679]
[1744207440610,9.3904,106.58,106.52,13.679]
[1744207440910,111.27538625,106.64,106.52,13.679]
[1744207441105,39.51538625,106.61,106.52,13.679]
[1744207441306,39.51538625,106.61,106.53,9.3939]
[1744207441504,39.51538625,106.61,106.55,0.06707867]
[1744207441815,0.07000473,106.58,106.55,0.06707867]
[1744207442016,9.3913,106.57,106.55,0.06707867]
[1744207442511,0.07000473,106.58,106.55,0.06707867]
[1744207443610,9.46070473,106.58,106.55,0.06707867]
[1744207443917,0.07000473,106.58,106.55,0.06707867]
[1744207444617,9.3913,106.57,106.55,0.06707867]
[1744207444917,0.07000473,106.58,106.55,0.06707867]
[1744207446306,9.3917,106.56,106.55,0.06707867]
[1744207447015,18.7717,106.56,106.55,7.867e-05]
[1744207447522,39.51538625,106.56,106.47,9.1018]
[1744207447813,9.3947,106.53,106.47,9.1018]
[1744207448017,39.51538625,106.56,106.47,9.1018]
[1744207448217,39.51538625,106.56,106.46,4.6889]
[1744207448218,39.51538625,106.52,106.46,4.6889]
[1744207448518,39.51538625,106.5,106.43,9.1018]
[1744207449018,71.84,106.51,106.43,9.1018]
[1744207449217,0.07196452,106.48,106.45,0.06915802]
[1744207449528,495.48,106.57,106.47,39.51538625]
[1744207449705,495.48,106.57,106.48,4.6444]
[1744207449906,495.48,106.57,106.49,39.51538625]
[1744207450102,111.35538625,106.59,106.49,44.18278625]
[1744207450324,9.3877,106.61,106.53,39.51538625]
[1744207450503,39.51538625,106.63,106.53,39.51538625]
[1744207450825,39.51538625,106.63,106.53,39.57996588]
[1744207451022,39.51538625,106.63,106.53,39.51538625]
[1744207451214,39.51538625,106.63,106.5,248.58593508]
[1744207451523,37.96636351,106.64,106.5,248.58593508]
[1744207451821,9.45948804,106.58,106.56,0.06066844]
[1744207452010,0.06948804,106.58,106.56,0.06066844]
[1744207452211,39.51538625,106.61,106.5,248.58593508]
[1744207452402,9.45195062,106.58,106.56,0.06157979]
[1744207452927,567.48,106.62,106.56,0.06157979]
[1744207453309,37.96636351,106.64,106.56,39.57696604]
[1744207453525,77.48174976,106.64,106.56,0.06157979]
[1744207453721,77.48174976,106.64,106.55,9.2834]
[1744207454023,71.68,106.68,106.59,39.51538625]
[1744207454210,0.06648566,106.61,106.59,39.51538625]
[1744207454410,9.383,106.66,106.59,39.51538625]
[1744207454713,9.383,106.66,106.6,62.0]
[1744207455021,9.3815,106.68,106.59,39.51538625]
[1744207455221,39.51538625,106.7,106.59,39.51538625]
[1744207455407,9.3824,106.67,106.58,320.26593508]
[1744207455609,0.06444965,106.66,106.63,0.06539443]
[1744207455806,71.68,106.69,106.63,0.06539443]
[1744207456015,0.07080095,106.66,106.63,0.06539443]
[1744207456516,9.3843,106.65,106.63,0.06539443]
[1744207456720,0.07080095,106.66,106.63,0.06539443]
[1744207457219,0.07080095,106.66,106.64,9.3841]
[1744207457419,0.07080095,106.66,106.63,0.06539443]
[1744207457808,0.07080095,106.66,106.64,71.3846]
[1744207458010,0.07080095,106.66,106.64,62.0]
[1744207459319,39.51538625,106.72,106.64,62.0]
[1744207459516,71.64,106.73,106.64,39.51538625]
[1744207459716,71.64,106.73,106.62,44.17988625]
[1744207459918,9.3834,106.66,106.63,9.3852]
[1744207460512,71.64,106.68,106.62,4.6645]
[1744207460718,0.06181575,106.66,106.63,0.06442783]
[1744207461115,9.3846,106.64,106.63,0.06442783]
[1744207461318,39.51538625,106.65,106.54,71.64]
[1744207461527,39.51538625,106.63,106.55,9.1359]
[1744207461716,71.64,106.62,106.55,9.1359]
[1744207462225,39.51538625,106.61,106.55,9.1359]
[1744207462419,0.06034755,106.6,106.57,0.06035061]
[1744207462728,9.3906,106.58,106.57,0.06035061]
[1744207464422,0.06034755,106.6,106.51,4.5566]
[1744207464625,0.06034755,106.6,106.52,4.4192]
[1744207464829,50.73028749,106.64,106.55,39.51538625]
[1744207465325,9.387,106.62,106.6,62.0]
[1744207465531,0.06013441,106.61,106.6,62.0]
[1744207466026,60.11538749,106.64,106.6,62.0]
[1744207466331,50.73028749,106.64,106.6,62.0]
[1744207466532,50.73028749,106.61,106.6,62.0]
[1744207467728,36.11548749,106.61,106.6,62.0]
[1744207468029,64.18685321,106.63,106.6,71.38]
[1744207468235,64.18685321,106.63,106.6,62.0]
[1744207468534,30.70645056,106.64,106.59,48.86934831]
[1744207468833,30.70645056,106.64,106.61,39.51538625]
[1744207469022,12.49676517,106.65,106.64,9.3846]
[1744207469719,12.49676517,106.65,106.63,9.44517241]
[1744207469919,12.49676517,106.65,106.63,0.05997241]
[1744207470528,12.49676517,106.65,106.64,9.3846]
[1744207471133,0.0689076,106.66,106.63,0.05997241]
[1744207471332,0.0689076,106.66,106.65,62.0]
[1744207472134,0.0689076,106.66,106.65,71.3837]
[1744207472431,9.2369,106.71,106.65,62.0]
[1744207472626,4.5814,106.71,106.67,9.3814]
[1744207472828,4.5814,106.71,106.62,39.51538625]
[1744207473133,4.5814,106.71,106.64,39.51538625]
[1744207473736,0.06334452,106.69,106.66,0.07013233]
[1744207475130,0.06334452,106.69,106.67,9.3815]
[1744207475336,0.06334452,106.69,106.66,0.07013233]
[1744207475730,0.06334452,106.69,106.68,62.0]
[1744207476139,14.11,106.76,106.68,110.89538625]
[1744207476140,9.4545,106.76,106.68,110.89538625]
[1744207476341,9.4545,106.76,106.68,39.51538625]
[1744207476740,9.4545,106.76,106.72,9.3771]
[1744207477031,9.4545,106.76,106.67,534.89538625]
[1744207477334,9.4545,106.76,106.71,0.06066188]
[1744207477526,71.64,106.78,106.71,0.06066188]
[1744207477722,39.51538625,106.77,106.67,495.38]
[1744207477928,39.51538625,106.75,106.66,71.64]
[1744207478127,53.43178625,106.77,106.67,39.51538625]
[1744207478431,13.9164,106.77,106.69,39.51538625]
[1744207478627,9.5189,106.77,106.69,39.51538625]
[1744207479035,4.3975,106.79,106.69,39.51538625]
[1744207479233,0.06683878,106.74,106.72,0.06158276]
[1744207479430,9.3736,106.77,106.73,62.0]
[1744207479627,0.06336506,106.74,106.73,62.0]